Cogmind - Beta 15 @@@ ROGUE MODE // 2025.06.17 @ 06:17:51 Player: Fleshy Vegetable Bird Result: Destroyed self with Subdweller Shrapnel Launcher Performance ------------- Evolutions (0) 0 Regions Visited (2) 400 Robots Destroyed (38) 190 Value Destroyed (817) 817 Prototype IDs (12) 240 Alien Tech Used (0) 0 Bonus (0) 0 TOTAL SCORE: 1647 Bonus ------- None Cogmind --------- Core Integrity 0/250 Matter 240/300 Energy 250/250 System Corruption 0% Temperature Cool (0) Movement Rolling (110) Ox2 Location -10/Subcaves Parts ------- > --- POWER (1) -------- Ion Engine > --- PROPULSION (2) --- Wheel Wheel > --- UTILITY (2) ------ Large Storage Unit Subdweller Optics > --- WEAPON (2) ------- Subdweller Shrapnel Launcher Subdweller Shrapnel Launcher > --- INVENTORY (15) --- Subdweller Power Source Subdweller Power Source Light Nuclear Core Subdweller Monowheel Subdweller Monowheel Structural Scanner Machine Analyzer Riot Gun Autogun Autogun Autogun Autogun Subdweller Machine Gun Heavy Hammer Scrap Shield Fragment (48) Peak State ------------ > --- POWER ------------ Ion Engine > --- PROPULSION ------- Wheel Wheel > --- UTILITY ---------- Large Storage Unit Subdweller Optics > --- WEAPON ----------- Improved Medium Laser Improved Medium Laser > --- INVENTORY -------- Subdweller Power Source Subdweller Power Source Light Nuclear Core Wheel Subdweller Monowheel Improved Heat Sink Structural Scanner Machine Analyzer Riot Gun Assault Rifle Autogun Autogun Autogun Autogun Heavy Hammer [Rating: 15] Favorites ----------- Power Light Ion Engine Engine Light Ion Engine Propulsion Wheel Wheel Wheel Utility Large Storage Unit Device Seismic Detector Storage Large Storage Unit Weapon Improved Medium Laser Energy Gun Improved Medium Laser Ballistic Gun Autogun Launcher Subdweller Shrapnel Launcher Impact Weapon Heavy Hammer Build | -11 -10 -10 ------- Run | Yrd Mat Sub Slots Evolved . | . . . Power . | . . . Propulsion . | . . . Utility . | . . . Weapon . | . . . Parts Attached 32 | 8 10 14 Power 3 | 1 1 1 Engine 3 | 1 1 1 Core . | . . . Reactor . | . . . Propulsion 11 | 2 5 4 Treads . | . . . Leg . | . . . Wheel 11 | 2 5 4 Hover . | . . . Flight . | . . . Utility 5 | 2 2 1 Device 3 | 1 1 1 Storage 2 | 1 1 . Processor . | . . . Hackware . | . . . Protection . | . . . Artifact . | . . . Weapon 13 | 3 2 8 Energy Gun 5 | 1 2 2 Energy Cannon . | . . . Ballistic Gun 5 | 2 . 3 Ballistic Cannon . | . . . Launcher 2 | . . 2 Special Weapon . | . . . Impact Weapon 1 | . . 1 Slashing Weapon . | . . . Piercing Weapon . | . . . Special Melee Weapon . | . . . Unidentified Prototypes 1 | . 1 . Parts Lost 5 | . . 5 Power 1 | . . 1 Propulsion 1 | . . 1 Utility 1 | . . 1 Weapon 2 | . . 2 Highest Loss Streak 2 | . . 2 To Critical Strikes . | . . . Average Backups 12 | 3 11 14 Power 2 | . 1 2 Propulsion 2 | 2 3 2 Utility 1 | . 1 2 Weapon 5 | . 5 6 Tool/Special . | . . . Unused Backups 16 | 2 3 11 Power 4 | . 1 3 Propulsion 4 | 2 . 2 Utility 3 | . . 3 Weapon 5 | . 2 3 Tool/Special . | . . . Average Slot Usage (%) 98 | . 100 95 Engine 13 | . 14 13 Wheel 28 | . 28 28 Device 12 | . 14 10 Storage 14 | . 14 14 Energy Gun 16 | . 17 15 Ballistic Gun 10 | . 10 11 Peak Build Rating 15 | 7 13 15 Average Rating 11 | 5 10 12 On Entrance 6 | . 7 13 Naked Turns . | . . . Heaviest Build 43 | 12 30 43 Greatest Support 20 | 20 20 20 Greatest Overweight (x) 3 | 3 1 3 Average Overweight (x) . | . . 1 Largest Inventory Capacity 15 | 8 15 15 Average Capacity 13 | 7 13 15 Most Carried 15 | 6 15 15 Average Carried 12 | 3 11 14 Final Capacity 15 | 8 15 15 Final Carried 15 | 6 15 15 Class Distribution -------------------- 96% | Mutant 3% | Scavenger-Mutant Dominant Class ---------------- Mutant | -10/Materials Mutant | -10/Subcaves Resources | -11 -10 -10 ----------- Run | Yrd Mat Sub Matter Collected 782 | 352 222 208 Remotely . | . . . Salvage Created 1248 | 210 698 340 Parts 78 | 21 48 9 Haulers Intercepted 1 | . 1 . Recyclers Shooed 1 | 1 . . Parts Field Recycled . | . . . Retrieved Matter . | . . . Parts Self-Destructed 5 | . . 5 Prevented . | . . . Kills | -11 -10 -10 ------- Run | Yrd Mat Sub Combat Hostiles Destroyed 20 | . 12 8 Guns 19 | . 12 7 AOE 1 | . . 1 Classes Destroyed 11 | 3 7 1 Worker 3 | 2 1 . Builder 2 | . 2 . Tunneler 6 | 5 1 . Hauler 1 | . 1 . Recycler 1 | 1 . . Mechanic 1 | . 1 . Operator 1 | . 1 . Watcher 3 | . 3 . Swarmer 3 | . 2 1 Grunt 12 | . 10 2 Subdweller 5 | . . 5 Best Kill Streak 5 | 5 5 2 Combat Bots Only 2 | . 2 2 Max Kills in Single Turn 2 | 2 1 1 Gunslinging . | . . . Exploded 1 | . . 1 Melee . | . . . Uniques/NPCs Destroyed . | . . . Combat | -11 -10 -10 -------- Run | Yrd Mat Sub Hostile Shots Fired 77 | . 38 39 Missed 25 | . 14 11 Hits 52 | . 24 28 Projectile 52 | . 24 28 Damage Taken 944 | . 313 631 Core 253 | . 96 157 Absorbed by Shields . | . . . Core Remaining (%) 100 | 100 . . Volleys Fired 102 | 18 53 31 Largest 2 | 2 2 2 Hottest 112 | 40 112 112 Shots Fired 201 | 36 106 59 Gun 198 | 36 106 56 Cannon . | . . . Launcher 3 | . . 3 Special . | . . . Kinetic 107 | 36 56 15 Thermal 94 | . 50 44 Explosive . | . . . Electromagnetic . | . . . Robot Hit Streak 26 | 7 12 26 Robot Miss Streak 4 | 4 3 1 Penetration Max . | . . . Secondary Targets 1 | . 1 . Max Gunslinging Chain 1 | . 1 . Shots Hit Robots 136 | 21 66 49 Core Hits 56 | 9 32 15 Critical Kills 2 | 1 1 . Critical Parts Destroyed . | . . . Critical Strikes 11 | 1 4 6 Burn 9 | . 3 6 Destroy 2 | 1 1 . Melee Attacks 2 | . . 2 Impact 2 | . . 2 Slashing . | . . . Piercing . | . . . Sneak Attacks 1 | . . 1 Combat Hostiles 1 | . . 1 Follow-up Attacks . | . . . Damage Inflicted 2032 | 232 852 948 Guns 1889 | 232 852 805 Cannons . | . . . Explosions 27 | . . 27 Melee 116 | . . 116 Ramming . | . . . Kinetic 760 | 232 370 158 Thermal 1156 | . 482 674 Explosive . | . . . Electromagnetic . | . . . Impact 116 | . . 116 Slashing . | . . . Piercing . | . . . Highest Corruption . | . . . Average Corruption . | . . . Corruption Purged . | . . . Corruption Blocked . | . . . Overload Shots . | . . . Overflow Damage . | . . . Projectiles . | . . . Explosions . | . . . Melee . | . . . Knockbacks 1 | . . 1 Impact 1 | . . 1 Kinetic . | . . . Secondary . | . . . Self-Inflicted Damage 55 | . . 55 Shots 1 | . . 1 Rammed . | . . . Targets Rammed . | . . . Kicked . | . . . Crushed . | . . . Highest Temperature 306 | . 306 18 Average Temperature 70 | . 81 7 Received Heat Transfer 294 | . 150 144 Effects 1 | . 1 . Energy Bleed 1 | . 1 . Siege Activations . | . . . Martial Activations . | . . . Shielding Activations . | . . . Robots Disrupted . | . . . Combat Hostiles . | . . . Robots Corrupted . | . . . Combat Hostiles . | . . . Parts Fried . | . . . Impact Corruptions . | . . . Robots Melted . | . . . Combat Hostiles . | . . . Parts Melted 1 | . . 1 Heat Transferred 3145 | . 1258 1887 Parts Sabotaged . | . . . Parts Stolen . | . . . Parts Stripped . | . . . Power Chain Reactions . | . . . Alert | -11 -10 -10 ------- Run | Yrd Mat Sub Maximum Alert Level . | . . . Low Security (%) 100 | 100 100 . Level 1 . | . . . Level 2 . | . . . Level 3 . | . . . Level 4 . | . . . Level 5 . | . . . High Security . | . . . Max Security . | . . . Peak Influence 110 | 15 110 . Initial . | . . . Average 17 | 3 19 . Influence Increases 488 | 40 363 85 Destroy 0b10 Robot/C 300 | . 240 60 Destroy 0b10 Robot/NC 90 | 40 50 . Destroy Leader 68 | . 58 10 Successful Hack 15 | . 15 . Lose Combat Pursuer 15 | . . 15 Influence Decreases 453 | 40 340 73 Entered New Map 12 | . . 12 Time Decay 326 | 40 235 51 Lost Part 10 | . . 10 Purge Threat 105 | . 105 . Squads Dispatched 2 | . 2 . Investigation . | . . . Extermination . | . . . Reinforcement 2 | . 2 . Assault . | . . . Garrison . | . . . Intercept . | . . . Searches Triggered . | . . . Construction Impeded . | . . . Haulers Reinforced . | . . . Active Scanning Responses . | . . . Cargo Convoy Interrupts . | . . . Stealth | -11 -10 -10 --------- Run | Yrd Mat Sub Distress Signals . | . . . Communications Jammed . | . . . Distress Signals . | . . . Times Spotted 30 | . 21 9 Peak Tracking Total 4 | . 3 4 Tactical Retreats 1 | . . 1 Traps | -11 -10 -10 ------- Run | Yrd Mat Sub Traps Triggered 3 | . 2 1 Indirectly . | . . . Trap Hack Attempts . | . . . Triggered . | . . . Disarmed . | . . . Reprogrammed . | . . . Reused . | . . . Traps Extracted . | . . . Installed . | . . . Triggered . | . . . Machines | -11 -10 -10 ---------- Run | Yrd Mat Sub Machines Disabled 2 | . 1 1 Max in Single Turn 1 | . 1 1 Machines Repaired . | . . . Machines Dismantled . | . . . Machines Sabotaged . | . . . Overloaded Fab Kills . | . . . Hacking | -11 -10 -10 --------- Run | Yrd Mat Sub Machines Accessed 4 | . 2 2 Terminals 2 | . 2 . Fabricators . | . . . Repair Stations . | . . . Recycling Units . | . . . Scanalyzers . | . . . Garrison Access . | . . . Total Hacks 14 | . 9 5 Successful 10 | . 5 5 Failed 4 | . 4 . Catastrophic . | . . . Database Lockouts . | . . . Manual 9 | . 9 . Terminals 9 | . 9 . Fabricators . | . . . Repair Stations . | . . . Recycling Units . | . . . Scanalyzers . | . . . Garrison Access . | . . . Terminal Hacks 8 | . 3 5 Record 4 | . . 4 Robot Analysis 2 | . 2 . Unreport Threat 1 | . 1 . Proto ID Catalog 1 | . . 1 Fabricator Hacks . | . . . Repair Station Hacks . | . . . Recycling Unit Hacks . | . . . Scanalyzer . | . . . Garrison Access Hacks . | . . . Unauthorized Hacks 2 | . 2 . Terminals 2 | . 2 . Track 1 | . 1 . Botnet 1 | . 1 . Fabricators . | . . . Repair Stations . | . . . Recycling Units . | . . . Scanalyzers . | . . . Garrison Access . | . . . Data Cores Recovered . | . . . Used . | . . . Hacking Detections 2 | . 2 . Full Trace Events . | . . . Feedback Events . | . . . Feedback Blocked . | . . . Robot Schematics Acquired . | . . . Robots Built . | . . . Authchips . | . . . Time . | . . . Total Robot Build Rating . | . . . Part Schematics Acquired . | . . . Parts Built . | . . . Authchips . | . . . Time . | . . . Total Part Build Rating . | . . . Parts Repaired . | . . . Time . | . . . Parts Recycled . | . . . Recycled Matter . | . . . Retrieved Matter . | . . . Retrieved Components . | . . . Parts Scanalyzed . | . . . Part Schematics Acquired . | . . . Parts Damaged . | . . . Bothacking | -11 -10 -10 ------------ Run | Yrd Mat Sub Used RIF Installer . | . . . Robots Hacked . | . . . Non-combat . | . . . Combat . | . . . Robot Hacks Applied . | . . . Relay Couplers Released . | . . . Fabnet Peak Effective % . | . . . Robots Rewired . | . . . Allies Hacked . | . . . Hacks Repelled . | . . . Allies | -11 -10 -10 -------- Run | Yrd Mat Sub Total Allies . | . . . Largest Group . | . . . Highest-Rated Group . | . . . Highest-Rated Ally . | . . . Total Orders . | . . . Ally Attacks . | . . . Total Damage . | . . . Kills . | . . . Allies Corrupted . | . . . Allies Melted . | . . . Intel | -11 -10 -10 ------- Run | Yrd Mat Sub Active Infowar (turns) 1177 | 4 769 404 Optics 404 | . . 404 Seismic 773 | 4 769 . Robot Analysis Total 2 | . 2 . Derelict Logs Recovered 1 | . . 1 Drone Launches . | . . . Drone Recoveries . | . . . Exploration | -11 -10 -10 ------------- Run | Yrd Mat Sub Turns Passed 1557 | 140 786 631 Spaces Moved 1049 | 82 494 473 Core 13 | 13 . . Treads . | . . . Legs . | . . . Wheels 1036 | 69 494 473 Hover . | . . . Flight . | . . . Fastest Speed 50 | 50 80 95 Average Speed 94 | 82 91 99 Slowest Speed 200 | 200 95 125 Overloaded Moves . | . . . Propulsion Burnouts . | . . . Robots Hopped . | . . . Potential Cave-ins . | . . . Cave-ins Triggered . | . . . Exploration Rate (%) 33 | 5 68 27 Regions Visited 2 Branch Regions 1 Pre-discovered Areas 1 | . . 1 Known Exits Taken . | . . . Unknown Exits Taken 2 | 1 1 . Scrap Searched 2 | . . 2 Spaces Dug . | . . . Terrain Destroyed 32 | . . 32 Melee . | . . . Projectile . | . . . AOE 32 | . . 32 Terrain Rammed . | . . . Walls Destroyed . | . . . Machines Disabled . | . . . Actions | -11 -10 -10 --------- Run | Yrd Mat Sub Total 1419 | 118 729 572 Wait 175 | . 144 31 Move 1047 | 81 493 473 Hop . | . . . Pick Up 34 | 8 15 11 Fast Attach 11 | 8 3 . Attach 5 | . . 5 Detach . | . . . Swap 20 | . 9 11 Drop 23 | 3 12 8 Fire 102 | 18 53 31 Melee 2 | . . 2 Ram . | . . . Kick . | . . . Crush . | . . . Escape Stasis . | . . . Rewire . | . . . Trap . | . . . Miscellaneous . | . . . Route ------- -11/Scrapyard -10/Materials (discovered 5 exits: [*Mat x2] / [*Min x2] / *Sub) -10/Subcaves (discovered 2 exits: [*Mat] / *Rec) History --------- Turn | Location | Event 6 | -11/Scrapyard | Discovered new exit (range 15) 141 | -11/Scrapyard | Entered Materials 261 | -10/Materials | Discovered new exit (range 4) 309 | -10/Materials | Build established: Mutant 464 | -10/Materials | Discovered new exit (range 11) 600 | -10/Materials | Discovered new exit (range 16) 738 | -10/Materials | Discovered new exit (range 11) 820 | -10/Materials | Discovered new exit (range 10) 927 | -10/Materials | Entered Subcaves 928 | -10/Subcaves | Approached by a straggling Scientist 964 | -10/Subcaves | Core integrity fell below 50% 1074 | -10/Subcaves | Learned Materials stockpile data 1108 | -10/Subcaves | Visited 4L-MR0's lab 1240 | -10/Subcaves | Visited Clippyterm 1243 | -10/Subcaves | Identified exit to Recycling 1243 | -10/Subcaves | Learned location of Extension (-5) 1371 | -10/Subcaves | Discovered new exit (range 19) 1388 | -10/Subcaves | Shifting Twisted Machinery released Sub. Shrapnel Launcher 1558 | -10/Subcaves | Destroyed self with Subdweller Shrapnel Launcher Last Messages --------------- 01359_ Subatomizers dissect the Imp. Medium Laser. 01371_ EXIT=FOUND 01373_ Acquired 58 matter. 01375_ Acquired Sub. Machine Gun. Sub. Shrapnel Launcher falls loose from the Twisted Machinery. 01396_ Dropped Imp. Heat Sink. 01397_ Acquired Sub. Shrapnel Launcher. 01438_ Acquired 9 matter. 01442_ Dropped Wheel. 01447_ Acquired 13 matter. 01533_ Searching scrap... 01533_ Found Sub. Shrapnel Launcher. 01533_ Found 54 Matter. 01535_ Dropped Imp. Medium Laser. 01535_ Acquired Sub. Shrapnel Launcher. 01539_ Acquired 20 matter. 01555_ Machine disabled. 01556_ S-10 Pest destroyed. Map ----- +----------------------------------------------------+ | ### ##??????????????????????###???????? | | ??## #????????????????????????????????? | | ###??## ## #????????????????????????????????? | | #???## #####????????????????????????????????? | | # ### ####????????????????????????????????? | | # ##???????????????????????????????? | | # #???????????????????????????????? | | ##### ##???????????????????????????????? | | ????# #????????????????????????????????? | | ???## ## ##???????????????????????????????? | | ???# #### #???????????????????????????????? | | ???# ##??# ##???????????????????????????????? | | ???## ###?####????######??????????????????????? | | ??### ##????????# %"##?????????????????????? | | ??# ##???????##" [ #?????????????????????? | | #" ### ##???###?#### ######????????????????? | | " #??## #??## # ; ##???#???????????? | | #"" #????# ##?# ## # ;;###>##??????????? | | ##" ?????## ### ; " """"????????? | | ?#"???????## ## ; " " ?????????? | | ?#""???????## ##### ; t ???????????? | | ?# " ##### ##??# ;% ??????????????? | | ?# ##### #; ;;%????????????????? | | ?# # ### #??????????????????? | | ?# #??????????????????? | | ?## @ ;###??????????????????? | | ??##### ## #;;;?????????????????????? | | ??????#### ########????????????????????????? | | ?????????# #???????????????????????????????? | | ?????????#### #???????????????????????????????? | | ????????????## ###???????????????????????????????? | | ?????????????###?????????????????????????????????? | | ?????????????????????????????????????????????????? | | ?????????????????????????????????????????????????? | | ?????????????????????????????????????????????????? | | ?????????????????????????????????????????????????? | | ?????????????????????????????????????????????????? | | ?????????????????????????????????????????????????? | | ?????????????????????????????????????????????????? | | ?????????????????????????????????????????????????? | | ?????????????????????????????????????????????????? | | ?????????????????????????????????????????????????? | | ?????????????????????????????????????????????????? | | ?????????????????????????????????????????????????? | | ?????????????????????????????????????????????????? | | ?????????????????????????????????????????????????? | | ?????????????????????????????????????????????????? | | ?????????????????????????????????????????????????? | | ?????????????????????????????????????????????????? | | ?????????????????????????????????????????????????? | +----------------------------------------------------+ Best States ------------- Heat Dissipation 25 Energy Generation 10 Energy Capacity 250 Matter Stores 300 Matter Capacity 300 Sight Range 21 Terrain Scan Density 10 Evasion (%) 50 Item Schematics ----------------- None Robot Schematics ------------------ None Fabricated ------------ Nothing Repaired ---------- Nothing Alien Tech Used ----------------- None Achievements -------------- None Challenges ------------ None Game ------ Seed MetaSuperdenseSaw Manual? 0 Play Time 00:13:43 Cumulative 379.5 hours Start 2025.06.17 @ 06:05:06 End 2025.06.17 @ 06:17:51 Sessions 1 Manual Loads 0 Difficulty Rogue Special Mode None Game No. 425 Rogue 425 Adventurer 0 Explorer 0 Win Type - Total 6 Types 3/1/1/1/0/0/0/0/0/0 Lore% 71 Gallery% 71 Achievement% 68 Wizard Run 0 Options --------- Layout 1 ASCII 0 Keyboard 0 Movement Numpad Keybinds 0 Fullscreen 1 Font 32/SmallcapsGlow Map View 50x35 Zoom Use 0% Tactical HUD 1 Map Filters NONE Filters NONE Steam 1 RUN: a4e189f9-6027-4d0c-b702-156d03b6e37c